bitfinex/quotes_ETHUSD_20251230
["timestamp","ask_amount","ask_price","bid_price","bid_amount"]
[1767060657991,2.2983,2931.7,2930.8,0.18252037]
[1767060658284,2.52813,2931.6,2930.8,0.1484]
[1767060658879,2.4339,2931.4,2930.8,0.1484]
[1767060659074,2.46809191,2931.3,2930.8,0.1484]
[1767060660584,0.03419191,2931.3,2930.8,0.1484]
[1767060660884,2.4339,2931.8,2931.0,0.1213]
[1767060661062,2.63053448,2931.8,2931.0,0.1213]
[1767060661964,2.63053448,2931.8,2931.0,3.41179821]
[1767060662177,2.63053448,2931.8,2931.1,0.1213]
[1767060664294,2.63053448,2931.8,2931.0,0.1213]
[1767060664594,2.4339,2931.6,2931.0,0.1213]
[1767060665698,0.19763448,2931.8,2931.0,0.1213]
[1767060665699,2.63153448,2931.8,2931.0,0.1213]
[1767060665895,0.001,2931.8,2931.1,0.1213]
[1767060666100,0.001,2931.8,2930.9,1.0193]
[1767060666101,2.4349,2931.8,2930.9,1.0193]
[1767060666272,2.78552448,2931.8,2931.0,0.1213]
[1767060667329,2.78552448,2931.8,2930.9,0.898]
[1767060667510,2.78552448,2931.8,2931.0,0.1213]
[1767060669507,2.710463,2931.7,2930.9,0.002]
[1767060669681,2.4339,2931.6,2930.9,0.002]
[1767060670018,2.4339,2931.2,2930.6,0.1213]
[1767060672436,2.4339,2931.6,2930.8,0.1233]
[1767060672606,2.4339,2931.6,2931.0,0.1233]
[1767060672812,2.4339,2931.4,2931.0,0.1233]
[1767060675433,2.4339,2931.7,2930.9,0.1223]
[1767060675613,2.4339,2931.7,2931.1,0.1223]
[1767060681946,0.001,2931.8,2931.1,0.1223]
[1767060682323,2.3064,2931.8,2931.1,0.1223]
[1767060682518,2.3064,2931.8,2931.0,3.41180056]
[1767060682519,2.3064,2931.8,2931.2,0.1223]
[1767060686359,0.001,2931.8,2931.3,0.1223]
[1767060686561,3.41091897,2932.7,2931.5,0.1294]
[1767060686562,0.001,2932.7,2931.5,0.1294]
[1767060686774,2.3054,2932.5,2931.8,2.4277]
[1767060687646,2.3064,2932.7,2931.8,2.4277]
[1767060687982,2.3054,2932.6,2931.9,0.75097806]
[1767060688133,2.3054,2932.2,2931.4,2.4277]
[1767060689440,0.001,2931.8,2931.4,2.4277]
[1767060689856,2.3054,2932.1,2931.5,2.4267]
[1767060693358,2.3054,2932.1,2931.2,2.4267]
[1767060693563,2.3054,2931.9,2931.0,3.3247]
[1767060693760,2.3054,2931.9,2931.1,2.4267]
[1767060694141,2.3054,2931.9,2931.2,0.03411572]
[1767060694341,2.3054,2931.9,2931.3,2.4267]
[1767060695062,2.3054,2932.4,2931.5,2.4267]
[1767060695262,2.3054,2932.4,2931.3,0.896]
[1767060695467,2.3054,2932.4,2931.4,2.4267]
[1767060695861,0.001,2931.9,2931.4,2.4267]
[1767060697279,2.3064,2931.9,2931.4,2.4267]
[1767060697574,2.53704,2931.9,2931.2,2.4267]
[1767060697879,3.41083719,2932.7,2931.4,2.4257]
[1767060697880,2.3054,2932.4,2931.4,2.4257]
[1767060698085,2.3054,2932.4,2931.6,2.4257]
[1767060700474,2.3054,2932.4,2931.8,2.4257]
[1767060704176,3.031281,2932.6,2931.8,2.4257]
[1767060704365,2.8391681,2932.5,2931.8,2.4257]
[1767060704564,2.3054,2932.5,2931.8,2.4257]
[1767060705301,2.3054,2932.5,2931.4,2.4257]
[1767060705478,2.3054,2932.3,2931.4,3.3217]
[1767060705677,2.3054,2932.3,2931.5,2.4257]
[1767060705856,2.3054,2932.3,2931.6,2.4213]
[1767060706556,0.001,2932.4,2931.8,2.4213]
[1767060709472,0.001,2932.7,2931.7,3.41094172]
[1767060709654,2.3319,2932.7,2931.8,2.45540873]
[1767060710460,2.3319,2932.7,2931.9,2.4213]
[1767060712186,2.3319,2932.7,2931.9,2.45540757]
[1767060713596,2.3319,2932.7,2932.1,2.4213]
[1767060713967,2.32380868,2932.9,2932.3,2.4213]
[1767060718499,2.32380868,2932.9,2932.0,2.4098]
[1767060719200,0.001,2933.1,2932.9,2.4098]
[1767060719404,2.4259,2933.1,2932.2,2.4098]
[1767060719612,2.4259,2933.1,2932.3,2.4098]
[1767060719809,2.4259,2933.1,2932.5,2.4098]
[1767060719980,2.4259,2933.1,2932.6,3.15887821]
[1767060720175,2.4259,2933.1,2932.7,2.4098]
[1767060720480,0.001,2933.3,2932.9,2.4098]
[1767060720676,0.001,2933.8,2933.2,5.08098209]
[1767060720881,0.001,2933.8,2933.3,2.4098]
[1767060721101,2.66995542,2933.8,2933.3,2.4098]
[1767060722213,0.001,2933.9,2933.5,2.4098]
[1767060722379,2.4259,2933.9,2933.5,2.4098]
[1767060723114,0.001,2933.9,2933.5,2.4098]
[1767060724921,0.001,2934.1,2933.3,2.4098]
[1767060725227,0.01365421,2934.0,2933.5,2.4098]
[1767060725920,2.4259,2934.1,2933.5,2.4098]
[1767060728024,0.001,2933.9,2933.5,2.4098]
[1767060728212,2.4259,2934.1,2933.3,2.4098]
[1767060732002,0.01365421,2934.0,2933.3,2.4098]
[1767060732208,2.43855421,2934.0,2933.3,2.4098]
[1767060733106,2.68260963,2934.0,2933.3,2.4098]
[1767060733355,2.4249,2933.5,2932.4,3.41016136]
[1767060733534,2.4249,2933.5,2932.6,2.4098]
[1767060740849,0.01365421,2933.6,2932.6,2.4098]
[1767060741753,2.41215421,2933.6,2932.6,2.4098]
[1767060742055,2.41215421,2933.6,2932.8,2.4119]
[1767060742746,2.3985,2933.6,2932.8,2.4119]
[1767060750842,2.3985,2933.6,2932.8,2.4139]
[1767060752734,2.41215421,2933.6,2932.8,2.4139]
[1767060756554,2.3985,2933.4,2932.8,2.4139]
[1767060765285,2.63971542,2933.4,2932.8,1.4139]
[1767060766481,0.01365421,2933.6,2932.8,0.002]
[1767060766685,2.334,2933.5,2932.9,2.4504]
[1767060768675,2.334,2933.7,2932.9,2.4504]
[1767060768874,2.334,2933.6,2932.9,2.4504]
[1767060771887,2.334,2933.8,2933.1,2.4504]
[1767060773986,2.334,2933.6,2933.1,2.4504]
[1767060779572,2.334,2933.6,2933.0,0.002]
[1767060780269,2.334,2933.6,2933.0,2.3067]
[1767060781494,2.334,2933.6,2933.0,2.53757]
[1767060782496,0.001,2933.8,2933.0,2.53757]
[1767060782671,2.4317,2933.8,2933.0,2.53757]
[1767060782872,2.4317,2933.8,2933.2,2.3047]
[1767060786692,2.4307,2933.6,2933.0,2.53757]
[1767060786915,2.4307,2933.6,2933.0,2.3067]
[1767060790726,2.4317,2933.6,2933.0,2.3067]
[1767060796228,0.001,2933.9,2933.1,2.2572]
[1767060796421,0.001,2933.9,2933.3,2.2572]
[1767060796929,2.4532,2934.1,2933.6,2.2572]
[1767060798233,0.001,2934.4,2933.5,2.2572]
[1767060798427,0.001,2934.4,2933.7,2.2572]
[1767060799144,2.4542,2934.4,2933.7,2.2572]
[1767060800739,2.4542,2934.4,2933.7,2.48292]
[1767060804051,2.4542,2934.5,2933.9,2.2572]
[1767060804341,0.001,2934.5,2933.9,2.2572]
[1767060804545,2.4552,2934.7,2934.0,2.2572]
[1767060806323,0.002,2934.4,2934.0,2.2572]
[1767060806528,0.002,2934.4,2934.2,2.2572]
[1767060808354,2.4532,2934.6,2934.2,2.2572]
[1767060808563,2.4532,2934.6,2933.9,2.2572]
[1767060810241,0.01365421,2934.5,2933.9,2.2572]
[1767060810549,2.4532,2934.4,2933.9,2.2572]
[1767060811936,2.4532,2934.4,2933.5,2.2572]
[1767060811937,2.4532,2934.2,2933.5,2.2572]
[1767060813870,2.4532,2934.2,2933.6,2.2582]
[1767060830412,2.4049,2934.4,2933.6,2.2582]
[1767060844824,0.01365421,2934.3,2933.6,2.2582]
[1767060845001,2.4281,2934.2,2933.6,2.2582]
[1767060845331,0.897,2934.6,2934.0,5.07540327]
[1767060845332,0.002,2934.6,2934.0,5.07540327]
[1767060845524,2.4281,2934.9,2933.9,0.895]
[1767060845700,2.4281,2934.9,2934.5,2.3979]
[1767060851607,2.4301,2934.9,2934.5,2.3979]
[1767060852331,2.4281,2935.2,2934.6,2.3979]
[1767060853005,2.4281,2935.1,2934.6,2.3979]
[1767060853330,2.44175421,2935.1,2934.6,2.3979]
[1767060856719,2.2694,2934.9,2933.9,3.40839005]
[1767060856900,2.2694,2934.9,2934.1,2.4914]
[1767060859445,2.2694,2934.9,2934.5,0.001]
[1767060860340,2.2694,2934.9,2934.5,2.4924]
[1767060860545,2.2694,2934.9,2934.5,2.45390954]
[1767060860920,2.2694,2934.9,2934.2,2.4914]
[1767060861145,2.2694,2934.9,2934.3,2.7439482]
[1767060867462,2.2694,2934.9,2934.3,2.4914]
[1767060868359,2.2694,2934.9,2934.3,2.4924]
[1767060868659,2.2694,2934.7,2934.3,2.4924]
[1767060871839,0.002,2934.9,2933.7,2.4914]
[1767060871840,2.2694,2934.3,2933.7,2.4914]
[1767060872041,2.2694,2934.1,2933.7,2.4914]
[1767060872231,2.2694,2934.4,2933.7,2.4914]
[1767060874788,2.2694,2934.4,2933.5,0.001]
[1767060875082,2.2694,2934.4,2933.5,2.4924]
[1767060876165,2.2694,2934.4,2933.6,2.4924]
[1767060876485,2.2694,2934.4,2933.6,2.83124]
[1767060877699,2.2694,2934.4,2933.6,0.001]
[1767060879189,2.2694,2934.0,2933.6,0.001]
[1767060881370,2.2694,2934.0,2933.6,2.4924]
[1767060882095,2.2694,2934.5,2933.6,2.4924]
[1767060882693,0.001,2934.4,2933.6,2.4924]
[1767060882896,2.2694,2934.3,2933.6,2.4924]
[1767060883078,2.2694,2934.3,2933.6,2.83464901]
[1767060884477,2.2694,2934.3,2933.7,0.03408664]
[1767060884679,2.2694,2934.3,2933.8,2.4914]
[1767060887184,2.2694,2934.3,2934.0,2.4945]
[1767060890113,0.001,2934.4,2934.0,2.4945]
[1767060890411,2.3052,2934.5,2934.2,2.4945]
[1767060891009,0.897,2934.9,2934.2,2.4945]
[1767060891211,2.3052,2934.8,2934.2,2.4945]
[1767060897213,0.002,2934.8,2934.2,2.4945]
[1767060897587,2.3072,2934.8,2934.2,2.4945]
[1767060897798,2.3072,2934.8,2934.4,2.4945]
[1767060897992,0.002,2934.8,2934.4,2.4945]
[1767060904329,2.4388,2934.7,2934.4,2.4945]
[1767060904719,2.4388,2934.7,2934.3,0.274395]
[1767060905032,2.4388,2934.7,2934.3,2.595795]
[1767060905330,2.4388,2934.7,2934.4,0.2595795]
[1767060906130,2.4388,2934.7,2934.1,2.57185]
[1767060908131,2.4388,2934.7,2934.1,0.25045]
[1767060908430,2.4388,2934.7,2934.1,0.001]
[1767060910332,2.4388,2934.7,2933.8,2.35548548]
[1767060910530,0.002,2934.8,2933.8,2.35548548]
[1767060910531,2.4388,2934.5,2933.8,2.3214]
[1767060910828,2.4388,2934.5,2933.6,2.3224]
[1767060911032,2.4388,2934.5,2933.6,2.64424]
[1767060911423,2.4388,2934.5,2934.0,0.001]
[1767060911825,2.4388,2934.5,2934.0,2.3224]
[1767060913638,2.4388,2934.5,2934.1,2.355482]
[1767060914032,2.4408,2934.8,2934.2,2.3214]
[1767060914233,0.002,2934.9,2934.4,2.3214]
[1767060914435,2.4408,2934.9,2934.5,2.35547735]
[1767060916735,2.4408,2934.9,2934.5,2.3214]
[1767060919431,0.002,2935.1,2934.7,2.3457]
[1767060919432,2.4899,2935.1,2934.7,2.3457]
[1767060919746,2.4899,2935.1,2934.8,0.23457]
[1767060920049,2.4899,2935.1,2934.7,2.3457]
[1767060923631,0.897,2935.6,2934.7,2.3457]
[1767060923632,2.4879,2935.3,2934.7,2.3457]
[1767060924237,2.4879,2935.3,2934.8,2.3457]
[1767060926653,2.4879,2935.5,2934.8,2.3457]
[1767060926966,2.4879,2935.5,2935.0,2.3457]
[1767060931188,0.002,2935.6,2935.1,2.3457]
[1767060933387,2.4899,2935.6,2935.1,2.3457]
[1767060933976,0.002,2935.5,2935.1,2.3457]
[1767060934164,2.4899,2935.5,2935.2,0.23457]
[1767060934569,2.4899,2935.5,2935.2,2.58027]
[1767060938796,0.002,2935.6,2935.3,2.3457]
[1767060939171,0.002,2935.8,2935.5,2.3457]
[1767060942710,2.48890199,2936.1,2935.5,2.3457]
[1767060942903,2.48890199,2936.1,2935.6,2.66967]
[1767060944482,2.4879,2935.9,2935.4,3.2397]
[1767060944810,2.4879,2935.9,2935.4,2.3457]
[1767060944994,2.4879,2935.9,2935.2,2.3457]
[1767060945311,2.4879,2935.7,2935.0,3.2407]
[1767060945513,2.4879,2935.7,2935.1,2.3457]
[1767060945813,5.06983533,2935.2,2934.6,2.2683]
[1767060946010,2.2671,2935.1,2934.6,2.2683]
[1767060946584,2.2671,2935.1,2934.6,0.001]
[1767060950705,2.2671,2935.1,2934.6,2.2683]
[1767060950904,2.2671,2935.1,2934.6,2.49523]
[1767060959194,2.2691,2935.1,2934.6,2.49523]
[1767060959916,0.002,2935.1,2934.6,2.49523]
[1767060960094,0.002,2935.1,2934.8,2.3679]
[1767060960292,0.002,2935.1,2934.9,0.03407271]
[1767060960496,2.2678,2935.4,2935.0,2.3679]
[1767060960696,2.2678,2935.6,2935.1,0.03407038]
[1767060960901,2.2678,2935.6,2935.2,2.3679]
[1767060961401,0.894,2935.8,2935.2,2.3679]
[1767060962122,2.2678,2935.9,2935.2,2.3679]
[1767060962305,2.2678,2935.9,2935.2,2.94881239]
[1767060962726,2.2678,2935.7,2935.2,2.3679]
[1767060966907,2.2678,2935.7,2935.0,2.3679]
[1767060967107,2.2698,2935.7,2935.0,2.3679]
[1767060967531,2.2678,2935.5,2935.0,2.3679]
[1767060969416,5.06983533,2935.6,2935.0,2.3679]
[1767060969417,0.00100199,2936.1,2935.5,2.3679]
[1767060969609,0.00100199,2936.1,2935.5,2.38155421]
[1767060969810,1.99e-06,2936.1,2935.7,2.3679]
[1767060970112,1.99e-06,2936.3,2935.7,2.3679]
[1767060973633,1.99e-06,2936.3,2935.9,2.3679]
[1767060973937,1.99e-06,2936.3,2936.1,2.3679]
[1767060974514,0.002,2936.7,2936.1,2.3679]
[1767060987414,2.4429,2936.7,2936.1,2.3679]
[1767061000242,5.07183533,2936.7,2936.0,0.001]
[1767061000453,2.4409,2936.6,2936.0,0.001]
[1767061000631,2.4409,2936.6,2936.0,2.4437]
[1767061003155,2.92765063,2936.6,2936.0,2.4437]
[1767061003336,2.92765063,2936.6,2935.8,2.4427]
[1767061003337,2.4409,2936.5,2935.8,2.4427]
[1767061005961,2.4409,2936.5,2936.0,0.001]
[1767061009091,2.4409,2936.5,2935.9,2.4364]
[1767061009764,2.4409,2936.5,2935.5,2.4364]
[1767061009968,2.4409,2936.5,2935.7,2.4364]
[1767061015173,2.4429,2936.5,2935.7,2.4364]
[1767061016874,2.3191,2936.4,2935.6,0.001]
[1767061017071,2.3191,2936.2,2935.6,0.001]
[1767061018078,2.3191,2936.2,2935.6,2.3878]
[1767061020576,2.64041,2936.2,2935.6,0.001]
[1767061020780,2.64041,2936.2,2935.4,2.3868]
[1767061023084,2.64041,2936.2,2935.5,2.3878]
[1767061028668,2.64041,2936.2,2935.3,2.3868]
[1767061030864,2.64041,2936.2,2935.1,2.65766038]
[1767061031064,2.3191,2936.0,2935.2,2.65266604]
[1767061032485,2.3191,2936.0,2935.5,0.001]
[1767061033792,2.3191,2936.0,2935.5,2.3878]
[1767061048507,0.894,2935.9,2935.5,2.3878]
[1767061048675,3.1892,2935.9,2935.5,2.3878]
[1767061050413,2.2952,2935.8,2935.5,2.3878]
[1767061052316,2.2952,2935.8,2935.3,2.3012]
[1767061055020,2.61412,2935.8,2935.1,2.3012]
[1767061057122,2.61412,2935.8,2935.3,0.001]
[1767061060626,2.61412,2935.8,2935.3,2.3022]
[1767061060806,2.2952,2935.8,2935.3,2.3022]
[1767061063529,0.002,2936.0,2935.4,0.03406689]
[1767061063735,1.0,2937.0,2935.7,2.3012]
[1767061063736,2.2952,2936.6,2935.7,2.3012]
[1767061064033,1.0,2937.0,2936.0,2.3012]
[1767061064034,0.894,2936.4,2936.0,2.3012]
[1767061064327,0.894,2936.6,2936.0,2.3012]
[1767061064527,3.1892,2936.6,2936.2,2.3012]
[1767061068532,2.2952,2936.6,2936.2,2.3012]
[1767061068733,3.1892,2936.6,2936.2,2.3012]
[1767061070313,2.2952,2936.6,2936.2,2.3012]
[1767061070521,0.894,2936.5,2936.2,2.3012]
[1767061070720,0.894,2936.5,2936.3,0.253132]
[1767061070921,0.894,2936.5,2936.3,2.562832]
[1767061071935,0.894,2936.5,2936.1,0.23012]
[1767061071936,3.2461,2936.5,2936.1,2.53982]
[1767061072135,3.2461,2936.5,2936.1,2.3097]
[1767061075409,0.894,2936.5,2936.1,2.3097]
[1767061080550,0.002,2936.7,2936.0,2.3376]
[1767061081324,3.41714576,2938.2,2936.6,2.3376]
[1767061081325,2.4783,2937.3,2936.6,2.3376]
[1767061081523,0.894,2937.3,2936.6,2.37165298]
[1767061082047,0.894,2937.3,2936.1,7.89278601]
[1767061082048,2.4783,2937.0,2936.2,2.3376]
[1767061082246,2.4783,2937.0,2936.2,2.37165762]
[1767061082451,5.06665684,2936.7,2936.2,2.3376]
[1767061082634,5.06665684,2936.8,2936.2,2.3376]
[1767061082838,2.4783,2936.7,2936.2,2.3376]
[1767061085132,2.4783,2937.0,2936.2,2.3376]
[1767061088854,2.4803,2937.0,2936.2,2.3376]
[1767061090962,3.3743,2937.0,2936.2,2.3376]
[1767061091138,3.3743,2937.0,2936.4,2.3376]
[1767061091336,3.3743,2937.0,2936.3,0.03405646]
[1767061091337,3.3743,2937.0,2936.6,2.3376]
[1767061091559,1.23343,2937.0,2936.6,2.3376]
[1767061091756,0.002,2937.0,2936.6,2.3376]
[1767061092566,2.4803,2937.0,2936.6,2.3376]
[1767061093553,0.002,2937.0,2936.6,2.37165298]
[1767061093763,2.4783,2937.2,2936.3,2.3376]
[1767061093927,2.81553,2937.2,2936.3,2.3376]
[1767061094131,2.4783,2937.2,2936.3,2.3376]
[1767061094454,2.4783,2937.2,2936.5,2.3376]
[1767061094657,0.894,2937.4,2936.6,2.3376]
[1767061095161,3.3723,2937.4,2936.6,2.3376]
[1767061095945,2.4783,2937.4,2936.6,2.3376]
[1767061096145,2.4783,2937.4,2936.8,2.4861]
[1767061097061,3.1848,2937.6,2936.8,2.4861]
[1767061097242,2.2908,2937.5,2936.8,2.4861]
[1767061097565,2.2928,2937.7,2936.8,2.4861]
[1767061097764,3.1868,2937.7,2937.1,2.4861]
[1767061098567,0.896,2937.7,2937.1,2.4861]
[1767061098939,2.2908,2938.0,2937.1,2.4861]
[1767061099189,3.1868,2938.2,2937.5,2.4861]
[1767061099341,2.2908,2938.1,2937.5,2.4861]
[1767061101340,2.2908,2938.0,2937.5,2.4861]
[1767061105366,2.2928,2938.0,2937.5,2.4861]
[1767061105964,2.2908,2937.5,2937.1,2.4861]
[1767061106166,7.35745684,2937.5,2937.1,2.4861]
[1767061106472,2.2908,2937.4,2937.1,2.4861]
[1767061111176,2.2908,2937.7,2937.1,2.4861]
[1767061119195,3.41408,2937.9,2937.1,2.4861]
[1767061119372,3.13907368,2937.8,2937.1,2.4861]
[1767061119569,0.84827368,2937.8,2937.1,2.4861]
[1767061119773,0.894,2937.9,2937.1,2.4861]
[1767061120080,2.2908,2937.9,2937.1,2.4861]
[1767061120283,0.896,2938.0,2937.2,2.52014603]
[1767061120494,3.1868,2938.0,2937.2,2.4861]
[1767061120864,3.60333175,2938.0,2937.2,2.4861]
[1767061121084,2.2908,2937.9,2937.2,2.4861]
[1767061125595,2.2908,2938.5,2937.5,5.06665684]
[1767061125791,0.894,2938.4,2937.5,5.06665684]
[1767061126015,2.2908,2938.5,2937.7,5.06665684]
[1767061126183,3.2193,2938.7,2937.6,0.50666568]
[1767061126379,3.2193,2938.7,2937.8,5.06665684]
[1767061126380,2.3273,2938.6,2937.8,5.06665684]
[1767061126680,2.3273,2938.6,2937.6,5.06665684]
[1767061127194,2.3273,2938.6,2937.6,5.10069823]
[1767061127890,2.3273,2938.6,2937.7,2.4123]
[1767061128096,2.3273,2938.6,2937.9,2.4123]
[1767061128784,0.002,2938.2,2937.9,2.4123]
[1767061129678,8.47670647,2939.1,2938.0,2.4123]
[1767061129679,2.3253,2939.1,2938.0,2.4123]
[1767061130678,3.2193,2939.0,2938.0,2.4123]
[1767061130884,2.3253,2938.9,2938.0,2.4123]
[1767061131100,2.3253,2938.9,2938.2,2.4123]
[1767061131811,1.04847127,2939.2,2938.2,2.4123]
[1767061131812,2.3253,2939.1,2938.2,2.4123]
[1767061131982,0.894,2939.0,2938.2,2.4123]
[1767061132170,3.2193,2939.0,2938.2,2.4123]
[1767061133278,2.3253,2938.9,2938.2,2.4123]
[1767061133476,2.3253,2938.9,2938.3,2.677653]
[1767061134808,0.894,2939.0,2938.3,2.677653]
[1767061135797,2.3253,2939.1,2938.3,2.677653]
[1767061135798,3.2193,2939.1,2938.3,2.677653]
[1767061135993,2.2528,2939.0,2938.3,2.677653]
[1767061136910,2.2548,2939.0,2938.3,2.677653]
[1767061137078,2.2548,2939.0,2938.5,2.3763]
[1767061137570,0.002,2939.0,2938.5,2.3763]
[1767061138412,0.002,2939.4,2938.6,2.3763]
[1767061138909,2.2548,2939.4,2938.6,2.3763]
[1767061140012,3.4013897,2940.0,2938.6,2.3763]
[1767061140013,5.65603161,2940.2,2938.8,2.3763]
[1767061140216,2.2528,2940.0,2939.0,2.3763]
[1767061141014,5.96729643,2940.1,2939.0,2.3763]
[1767061141015,2.2528,2939.8,2939.0,2.3763]
[1767061143610,2.2528,2939.7,2939.0,2.3763]
[1767061143817,2.2528,2939.7,2939.2,2.3763]
[1767061145007,2.2528,2939.7,2938.4,0.2677653]
[1767061145311,2.2528,2939.7,2938.5,2.41033096]
[1767061145514,2.2528,2939.7,2938.6,2.3763]
[1767061145717,2.2528,2939.7,2938.8,2.3763]
[1767061146015,2.2528,2939.6,2938.8,2.3763]
[1767061146995,2.2528,2939.6,2938.7,2.3763]
[1767061150487,5.06064222,2939.5,2938.7,2.3763]
[1767061150690,2.2528,2939.4,2938.7,2.3763]
[1767061151119,2.2528,2939.4,2938.4,0.2677653]
[1767061151289,2.2528,2939.4,2938.1,0.24223]
[1767061151290,2.2528,2938.9,2938.2,2.41033444]
[1767061151487,2.2528,2939.1,2938.2,2.3763]
[1767061153015,2.2548,2939.1,2938.2,2.3763]
[1767061156445,2.4238,2939.0,2938.2,2.3763]
[1767061158007,2.4238,2939.0,2937.8,0.02726803]
[1767061158212,2.4238,2938.8,2937.9,2.428]
[1767061158451,2.4238,2938.8,2938.1,2.428]
[1767061158657,2.4238,2938.8,2938.2,2.46203444]
[1767061159437,2.4238,2938.8,2938.2,2.428]
[1767061159612,2.81389874,2938.8,2938.2,2.428]
[1767061160247,2.4238,2938.8,2938.2,2.428]
[1767061160458,3.3168,2939.0,2938.4,2.428]
[1767061160933,2.4238,2939.0,2938.6,2.428]
[1767061161148,0.002,2939.1,2938.7,2.46202865]
[1767061161341,3.4018669,2939.6,2938.9,2.428]
[1767061161342,2.4238,2939.4,2938.9,2.428]
[1767061161709,0.002,2939.6,2938.9,2.428]
[1767061162021,2.4258,2939.6,2938.9,2.428]
[1767061163338,2.4238,2939.5,2938.9,2.428]
[1767061165838,2.4238,2939.5,2938.5,2.428]
[1767061166152,2.4238,2939.5,2938.7,2.428]
[1767061171255,2.4238,2939.2,2938.6,2.46302981]
[1767061171415,2.4238,2939.2,2938.6,2.429]
[1767061171821,3.3168,2939.5,2938.6,2.429]
[1767061172034,2.4238,2939.5,2938.8,2.428]
[1767061172258,3.3168,2939.5,2938.8,2.428]
[1767061177023,0.002,2939.6,2938.8,2.428]
[1767061177218,0.893,2939.7,2939.0,2.428]
[1767061177423,3.3168,2939.7,2939.0,2.428]
[1767061177843,0.002,2939.5,2939.0,2.428]
[1767061178057,3.3168,2939.7,2939.1,2.428]
[1767061178257,2.4238,2939.6,2938.8,2.428]
[1767061185069,2.4238,2939.6,2938.8,2.429]
[1767061185274,2.4258,2939.6,2938.8,2.429]
[1767061193677,2.3093,2939.5,2938.8,2.429]
[1767061193882,2.3093,2939.5,2939.0,2.3001]
[1767061200969,2.4605,2940.1,2939.4,2.4038]
[1767061201275,2.4605,2939.9,2939.4,2.4038]
[1767061201492,2.4605,2939.9,2939.2,0.03402286]
[1767061201798,2.4605,2939.9,2939.3,2.91297219]
[1767061203911,0.002,2940.2,2939.4,2.4038]
[1767061204197,2.4625,2940.2,2939.4,2.4038]
[1767061207799,2.4625,2940.2,2939.4,2.43782054]
[1767061208184,2.4125,2940.2,2939.5,2.4038]
[1767061208507,2.4605,2940.1,2939.5,2.4038]
[1767061209811,2.4605,2940.0,2939.5,2.4038]
[1767061211002,2.4605,2939.8,2939.5,2.4038]
[1767061211208,2.4605,2939.6,2939.0,1.1432]
[1767061213294,2.3105,2939.6,2938.9,1.2932]
[1767061214475,2.4605,2939.9,2939.0,0.03402517]
[1767061214706,0.893,2939.8,2939.1,1.2932]
[1767061215004,0.893,2939.8,2939.0,5.73031659]
[1767061215005,0.893,2940.0,2939.3,1.2932]
[1767061215198,0.893,2940.0,2939.5,1.2932]
[1767061215398,3.3535,2940.0,2939.5,1.2932]
[1767061215708,2.4605,2939.9,2939.5,1.2932]
[1767061216475,2.4105,2939.9,2939.5,1.2932]
[1767061220500,0.33555,2940.0,2939.5,1.2932]
[1767061220699,3.2076,2940.1,2939.5,1.2932]
[1767061220903,3.2076,2940.1,2939.1,1.3432]
[1767061220904,2.3146,2940.0,2939.1,1.3432]
[1767061221313,2.3146,2939.9,2939.1,1.3432]
[1767061222009,2.3146,2939.5,2939.1,1.3432]
[1767061223286,2.3146,2939.9,2939.1,1.3432]
[1767061223584,0.893,2939.8,2939.2,1.3432]
[1767061224613,2.3146,2939.7,2939.2,1.3432]
[1767061227316,7.372299,2939.5,2938.8,1.3452]
[1767061227629,3.0518299,2939.5,2938.8,1.3452]
[1767061227797,2.3146,2939.5,2939.0,1.3442]
[1767061228124,2.3146,2939.5,2939.2,1.3442]
[1767061230415,2.3146,2939.5,2938.9,1.3442]
[1767061232624,2.3146,2939.3,2938.8,0.001]
[1767061233298,2.3146,2939.3,2938.9,0.001]
[1767061236225,2.3146,2939.2,2938.9,0.001]
[1767061240303,2.3146,2939.2,2938.8,0.001]
[1767061242309,2.3146,2939.2,2938.9,0.001]
[1767061243739,2.3146,2939.4,2938.9,0.001]
[1767061244031,2.3146,2939.4,2939.0,1.3432]
[1767061244032,0.893,2939.4,2939.0,1.3432]
[1767061244539,2.3146,2939.8,2939.0,1.3432]
[1767061244726,0.893,2939.7,2939.2,1.3432]
[1767061245202,3.2076,2939.7,2939.2,1.3432]
[1767061245533,3.2096,2939.9,2939.2,1.3432]
[1767061245926,2.3581,2939.8,2939.2,1.3432]
[1767061246119,2.3581,2939.7,2939.2,1.3432]
[1767061246621,2.3581,2939.7,2938.9,1.3442]
[1767061247335,2.3581,2939.5,2938.9,1.3442]
[1767061247939,2.3581,2939.5,2939.1,1.3432]
[1767061249131,0.893,2939.6,2939.1,1.3432]
[1767061251337,2.3581,2939.5,2939.1,1.3432]
[1767061252635,2.3581,2939.5,2938.9,0.001]
[1767061252841,2.3581,2939.5,2938.9,1.3442]
[1767061253940,0.002,2939.6,2938.9,1.3442]
[1767061254843,0.002,2939.6,2939.1,1.3432]
[1767061255947,2.4698,2939.6,2939.1,1.3432]
[1767061261564,3.14624032,2939.6,2939.1,1.3432]
[1767061261762,2.4678,2939.5,2939.0,0.001]
[1767061261929,2.4678,2939.5,2939.0,1.3442]
[1767061264432,2.4678,2939.5,2939.0,0.001]
[1767061266758,2.4678,2939.5,2939.0,1.3442]
[1767061269558,2.80544542,2939.5,2938.9,0.001]
[1767061270153,2.80544542,2939.5,2938.9,1.3452]